[Event "Limburg Open 2022"]
[Site "Maastricht"]
[Date "2022.06.04"]
[Round "2.11"]
[White "Kucharska, Honorata"]
[Black "Kopylov, Daniel"]
[Result "0-1"]
[ECO "B51"]
[WhiteElo "2181"]
[BlackElo "2326"]
[PlyCount "120"]
[EventDate "2022.06.03"]
[EventType "swiss"]
[EventRounds "7"]
[EventCountry "NED"]
[SourceTitle "Limburg Open"]
[Source "Limburg Open"]
[SourceDate "2022.06.06"]
[SourceVersion "7"]
[SourceVersionDate "2022.06.06"]
[SourceQuality "1"]
[TimeControl "7200+15"]

1. e4 {[%emt 0:00:02]} c5 {[%emt 0:00:27]} 2. Nf3 {[%emt 0:00:03]} Nc6 {
[%emt 0:00:07]} 3. Bb5 {[%emt 0:00:10]} d6 {[%emt 0:00:16]} 4. O-O {[%emt 0:00:
10]} Bd7 {[%emt 0:00:17]} 5. Re1 {[%emt 0:00:07]} Nf6 {[%emt 0:00:17]} 6. c3 {
[%emt 0:00:05]} a6 {[%emt 0:00:06]} 7. Bf1 {[%emt 0:00:05]} Bg4 {[%emt 0:00:07]
} 8. h3 {[%emt 0:00:05]} Bxf3 {[%emt 0:00:46]} 9. Qxf3 {[%emt 0:00:05]} e6 {
[%emt 0:00:13]} 10. d3 {[%emt 0:01:57]} Be7 {[%emt 0:05:09]} 11. Be3 {[%emt 0:
05:29]} d5 {[%emt 0:16:26]} 12. Bf4 {[%emt 0:07:18]} O-O {[%emt 0:05:23]} 13.
Nd2 {[%emt 0:03:31]} Rc8 {[%emt 0:06:19]} 14. Qe2 {[%emt 0:10:43]} b5 {[%emt 0:
03:40]} 15. Nf3 {[%emt 0:04:50]} d4 {[%emt 0:06:56]} 16. Red1 {[%emt 0:07:15]}
Nd7 {[%emt 0:11:36]} 17. e5 {[%emt 0:02:18]} dxc3 {[%emt 0:01:22]} 18. bxc3 {
[%emt 0:01:27]} Nb6 {[%emt 0:00:26]} 19. Rac1 {[%emt 0:12:47]} b4 {[%emt 0:10:
22]} 20. cxb4 {[%emt 0:04:46]} Nd5 {[%emt 0:07:16]} 21. Bd2 {[%emt 0:02:28]}
Ncxb4 {[%emt 0:05:51]} 22. a3 {[%emt 0:01:32]} Nc6 {[%emt 0:00:15]} 23. Qe4 {
[%emt 0:02:06]} Qb6 {[%emt 0:08:44]} 24. Rb1 {[%emt 0:01:56]} Qa7 {[%emt 0:00:
33]} 25. Qg4 {[%emt 0:10:20]} Rfd8 {[%emt 0:00:40]} 26. Rbc1 {[%emt 0:02:28]}
Nd4 {[%emt 0:01:45]} 27. Rc4 {[%emt 0:06:23]} Qb8 {[%emt 0:05:50]} 28. Ba5 {
[%emt 0:02:14]} Rd7 {[%emt 0:09:29]} 29. Nxd4 {[%emt 0:00:54]} cxd4 {[%emt 0:
00:41]} 30. Qxd4 {[%emt 0:00:53]} Bxa3 {[%emt 0:04:39]} 31. Rxc8+ {[%emt 0:00:
37]} Qxc8 {[%emt 0:00:10]} 32. Qa4 {[%emt 0:00:11]} Bf8 {[%emt 0:07:35]} 33. d4
{[%emt 0:00:54]} Ra7 {[%emt 0:00:26]} 34. Bc4 {[%emt 0:07:36]} Qb7 {[%emt 0:01:
43]} 35. Bf1 {[%emt 0:03:13]} Ra8 {[%emt 0:00:33]} 36. Rc1 {[%emt 0:02:15]} h6
{[%emt 0:01:43]} 37. Qc4 {[%emt 0:02:19]} Be7 {[%emt 0:00:25]} 38. Ra1 {
[%emt 0:01:16]} Qb2 {[%emt 0:00:38]} 39. Ra2 {[%emt 0:03:03]} Qb1 {[%emt 0:00:
02]} 40. Qc2 {[%emt 0:00:12]} Qxc2 {[%emt 0:00:18]} 41. Rxc2 {[%emt 0:00:05]}
Bb4 {[%emt 0:00:11]} 42. Ra2 {[%emt 0:00:42]} Nc3 {[%emt 0:00:20]} 43. Ra1 {
[%emt 0:00:02]} Bxa5 {[%emt 0:00:26]} 44. Rxa5 {[%emt 0:00:05]} Rd8 {[%emt 0:
00:03]} 45. Ra3 {[%emt 0:04:49]} Nb5 {[%emt 0:00:16]} 46. Rxa6 {[%emt 0:00:52]}
Nxd4 {[%emt 0:00:02]} 47. f4 {[%emt 0:00:49]} g5 {[%emt 0:00:08]} 48. fxg5 {
[%emt 0:00:43]} hxg5 {[%emt 0:00:06]} 49. Kf2 {[%emt 0:01:33]} Nf5 {[%emt 0:00:
46]} 50. g4 {[%emt 0:02:28]} Nh4 {[%emt 0:00:25]} 51. Ke3 {[%emt 0:00:28]} Rd5
{[%emt 0:00:09]} 52. Ke4 {[%emt 0:01:04]} Ng6 {[%emt 0:00:01]} 53. Bc4 {
[%emt 0:00:44]} Rxe5+ {[%emt 0:00:09]} 54. Kd4 {[%emt 0:00:17]} Kg7 {[%emt 0:
00:13]} 55. Ra7 {[%emt 0:00:19]} Re1 {[%emt 0:00:15]} 56. Bb5 {[%emt 0:00:30]}
Kf6 {[%emt 0:00:44]} 57. Be8 {[%emt 0:00:45]} Ne5 {[%emt 0:00:02]} 58. Rb7 {
[%emt 0:00:27]} Rh1 {[%emt 0:00:14]} 59. Rb2 {[%emt 0:00:26]} Rxh3 {[%emt 0:00:
17]} 60. Rf2+ {[%emt 0:01:18]} Rf3 {[%emt 0:00:02]} 0-1

[Event "Limburg Open 2022"]
[Site "Maastricht"]
[Date "2022.06.04"]
[Round "2.12"]
[White "Fischer, Daniel"]
[Black "De Jong, Tom"]
[Result "1-0"]
[ECO "B12"]
[WhiteElo "2324"]
[BlackElo "2163"]
[PlyCount "103"]
[EventDate "2022.06.03"]
[EventType "swiss"]
[EventRounds "7"]
[EventCountry "NED"]
[SourceTitle "Limburg Open"]
[Source "Limburg Open"]
[SourceDate "2022.06.06"]
[SourceVersion "7"]
[SourceVersionDate "2022.06.06"]
[SourceQuality "1"]
[TimeControl "7200+15"]

1. e4 {[%emt 0:00:04]} c6 {[%emt 0:00:05]} 2. d4 {[%emt 0:00:05]} d5 {[%emt 0:
00:05]} 3. e5 {[%emt 0:00:04]} c5 {[%emt 0:00:08]} 4. dxc5 {[%emt 0:00:05]} e6
{[%emt 0:00:07]} 5. a3 {[%emt 0:00:17]} Nc6 {[%emt 0:00:12]} 6. Nf3 {[%emt 0:
00:17]} Bxc5 {[%emt 0:00:07]} 7. b4 {[%emt 0:00:42]} Bb6 {[%emt 0:00:31]} 8.
Bb2 {[%emt 0:00:18]} Nge7 {[%emt 0:00:11]} 9. Nbd2 {[%emt 0:00:29]} O-O {
[%emt 0:07:04]} 10. Bd3 {[%emt 0:02:18]} Ng6 {[%emt 0:03:09]} 11. b5 {[%emt 0:
07:33]} Na5 {[%emt 0:06:24]} 12. g3 {[%emt 0:00:36]} f5 {[%emt 0:09:27]} 13. h4
{[%emt 0:04:19]} Bd7 {[%emt 0:04:49]} 14. h5 {[%emt 0:03:45]} Nh8 {[%emt 0:02:
06]} 15. Nd4 {[%emt 0:14:06]} Nf7 {[%emt 0:05:06]} 16. f4 {[%emt 0:02:31]} Nh6
{[%emt 0:01:11]} 17. Qe2 {[%emt 0:02:20]} Rc8 {[%emt 0:02:46]} 18. a4 {[%emt 0:
16:05]} Ng4 {[%emt 0:17:06]} 19. Rh4 {[%emt 0:08:27]} Kh8 {[%emt 0:04:40]} 20.
Rxg4 {[%emt 0:08:32]} fxg4 {[%emt 0:00:02]} 21. Qxg4 {[%emt 0:06:04]} Nc4 {
[%emt 0:01:40]} 22. Bxc4 {[%emt 0:03:37]} dxc4 {[%emt 0:08:22]} 23. N2f3 {
[%emt 0:01:16]} c3 {[%emt 0:03:25]} 24. Ba3 {[%emt 0:00:57]} Bc5 {[%emt 0:01:
54]} 25. Bxc5 {[%emt 0:01:16]} Rxc5 {[%emt 0:00:06]} 26. Kf2 {[%emt 0:10:16]}
Rd5 {[%emt 0:06:35]} 27. h6 {[%emt 0:03:59]} gxh6 {[%emt 0:01:13]} 28. Qh5 {
[%emt 0:00:18]} Bc8 {[%emt 0:23:41]} 29. Rd1 {[%emt 0:02:25]} Qe7 {[%emt 0:01:
32]} 30. Qxh6 {[%emt 0:02:14]} Rfd8 {[%emt 0:02:45]} 31. Rd3 {[%emt 0:04:35]}
a6 {[%emt 0:04:29]} 32. Rxc3 {[%emt 0:01:31]} axb5 {[%emt 0:02:58]} 33. axb5 {
[%emt 0:00:02]} Bd7 {[%emt 0:01:36]} 34. Rc7 {[%emt 0:01:16]} Rc8 {[%emt 0:00:
52]} 35. Rxb7 {[%emt 0:02:25]} Qc5 {[%emt 0:00:40]} 36. Qf6+ {[%emt 0:02:27]}
Kg8 {[%emt 0:00:02]} 37. Rxd7 {[%emt 0:00:45]} Rxd7 {[%emt 0:00:13]} 38. Qxe6+
{[%emt 0:00:01]} Rf7 {[%emt 0:00:15]} 39. Kg2 {[%emt 0:00:25]} Rd8 {[%emt 0:00:
43]} 40. Ng5 {[%emt 0:04:29]} Qd5+ {[%emt 0:00:05]} 41. Qxd5 {[%emt 0:00:04]}
Rxd5 {[%emt 0:00:02]} 42. Nxf7 {[%emt 0:00:06]} Rxd4 {[%emt 0:00:28]} 43. Nd6 {
[%emt 0:00:05]} Rd2+ {[%emt 0:00:11]} 44. Kf3 {[%emt 0:00:01]} Rxc2 {[%emt 0:
00:06]} 45. b6 {[%emt 0:00:26]} Rb2 {[%emt 0:00:27]} 46. b7 {[%emt 0:00:04]}
Rb4 {[%emt 0:00:39]} 47. f5 {[%emt 0:00:54]} Kg7 {[%emt 0:00:26]} 48. f6+ {
[%emt 0:01:31]} Kg6 {[%emt 0:00:08]} 49. Ke3 {[%emt 0:00:35]} h5 {[%emt 0:00:
14]} 50. Kd3 {[%emt 0:00:10]} Rb1 {[%emt 0:00:56]} 51. Kc4 {[%emt 0:00:09]} Rb2
{[%emt 0:00:06]} 52. Nb5 {[%emt 0:00:23]} 1-0

[Event "Limburg Open 2022"]
[Site "Maastricht"]
[Date "2022.06.04"]
[Round "2.13"]
[White "Van Cappellen, Jonas"]
[Black "Gupta, Sankalp"]
[Result "0-1"]
[ECO "C02"]
[WhiteElo "2244"]
[BlackElo "2505"]
[PlyCount "56"]
[EventDate "2022.06.03"]
[EventType "swiss"]
[EventRounds "7"]
[EventCountry "NED"]
[SourceTitle "Limburg Open"]
[Source "Limburg Open"]
[SourceDate "2022.06.06"]
[SourceVersion "7"]
[SourceVersionDate "2022.06.06"]
[SourceQuality "1"]
[TimeControl "7200+15"]

1. e4 {[%emt 0:05:00]} e6 {[%emt 0:00:34]} 2. d4 {[%emt 0:00:15]} d5 {[%emt 0:
00:03]} 3. e5 {[%emt 0:00:07]} c5 {[%emt 0:00:05]} 4. c3 {[%emt 0:00:04]} Nc6 {
[%emt 0:00:11]} 5. Nf3 {[%emt 0:00:07]} Bd7 {[%emt 0:02:47]} 6. Be2 {[%emt 0:
00:49]} Nge7 {[%emt 0:00:54]} 7. Na3 {[%emt 0:02:44]} Ng6 {[%emt 0:09:43]} 8.
Nc2 {[%emt 0:01:37]} f6 {[%emt 0:01:46]} 9. Bd3 {[%emt 0:06:29]} f5 {[%emt 0:
03:32]} 10. h4 {[%emt 0:01:13]} c4 {[%emt 0:05:33]} 11. Be2 {[%emt 0:01:32]}
Be7 {[%emt 0:00:06]} 12. g3 {[%emt 0:01:43]} O-O {[%emt 0:00:37]} 13. Ne3 {
[%emt 0:07:52]} b5 {[%emt 0:00:31]} 14. Ng2 {[%emt 0:07:21]} b4 {[%emt 0:13:32]
} 15. h5 {[%emt 0:13:18]} Nh8 {[%emt 0:00:00]} 16. Nf4 {[%emt 0:08:39]} bxc3 {
[%emt 0:00:00]} 17. bxc3 {[%emt 0:00:11]} Rb8 {[%emt 0:00:00]} 18. Rg1 {
[%emt 0:06:44]} Nf7 {[%emt 0:13:01]} 19. g4 {[%emt 0:19:58]} fxg4 {[%emt 0:00:
50]} 20. Nh2 {[%emt 0:03:16]} Qa5 {[%emt 0:02:51]} 21. Bd2 {[%emt 0:01:52]}
Nxd4 {[%emt 0:05:42]} 22. cxd4 {[%emt 0:00:24]} c3 {[%emt 0:00:31]} 23. Bd3 {
[%emt 0:02:49]} cxd2+ {[%emt 0:00:48]} 24. Kf1 {[%emt 0:00:16]} Ng5 {[%emt 0:
00:10]} 25. Qxg4 {[%emt 0:04:45]} Qc3 {[%emt 0:00:25]} 26. Ke2 {[%emt 0:03:16]}
Qxd4 {[%emt 0:01:37]} 27. Nf3 {[%emt 0:01:12]} d1=Q+ {[%emt 0:01:27]} 28. Raxd1
{[%emt 0:02:10]} Rb2+ {[%emt 0:00:03]} 0-1

[Event "Limburg Open 2022"]
[Site "Maastricht"]
[Date "2022.06.04"]
[Round "2.14"]
[White "Dorst, Johannes"]
[Black "Braun, Christian"]
[Result "0-1"]
[ECO "C11"]
[WhiteElo "2246"]
[BlackElo "2428"]
[PlyCount "96"]
[EventDate "2022.06.03"]
[EventType "swiss"]
[EventRounds "7"]
[EventCountry "NED"]
[SourceTitle "Limburg Open"]
[Source "Limburg Open"]
[SourceDate "2022.06.06"]
[SourceVersion "7"]
[SourceVersionDate "2022.06.06"]
[SourceQuality "1"]
[TimeControl "7200+15"]

1. e4 {[%emt 0:00:03]} e6 {[%emt 0:03:09]} 2. d4 {[%emt 0:00:22]} d5 {[%emt 0:
00:21]} 3. Nc3 {[%emt 0:00:09]} Nf6 {[%emt 0:00:19]} 4. e5 {[%emt 0:00:06]}
Nfd7 {[%emt 0:00:05]} 5. f4 {[%emt 0:00:13]} c5 {[%emt 0:00:05]} 6. Nf3 {
[%emt 0:00:18]} Nc6 {[%emt 0:00:06]} 7. Be3 {[%emt 0:00:20]} a6 {[%emt 0:00:05]
} 8. Qd2 {[%emt 0:00:51]} Be7 {[%emt 0:00:08]} 9. dxc5 {[%emt 0:01:28]} Nxc5 {
[%emt 0:00:29]} 10. O-O-O {[%emt 0:01:08]} Qa5 {[%emt 0:00:06]} 11. Kb1 {
[%emt 0:00:29]} b5 {[%emt 0:00:07]} 12. Ne2 {[%emt 0:01:25]} Qxd2 {[%emt 0:00:
07]} 13. Rxd2 {[%emt 0:03:33]} Bd7 {[%emt 0:03:14]} 14. Ned4 {[%emt 0:00:57]}
O-O {[%emt 0:05:48]} 15. Nxc6 {[%emt 0:05:59]} Bxc6 {[%emt 0:00:28]} 16. Bd4 {
[%emt 0:11:54]} b4 {[%emt 0:07:55]} 17. g3 {[%emt 0:13:43]} a5 {[%emt 0:10:51]}
18. Bh3 {[%emt 0:08:55]} Ne4 {[%emt 0:00:00]} 19. Rdd1 {[%emt 0:02:18]} Bb5 {
[%emt 0:00:00]} 20. Rhe1 {[%emt 0:00:50]} a4 {[%emt 0:00:44]} 21. f5 {[%emt 0:
03:35]} Bd7 {[%emt 0:01:31]} 22. g4 {[%emt 0:10:37]} a3 {[%emt 0:06:17]} 23. b3
{[%emt 0:02:00]} Rfc8 {[%emt 0:04:20]} 24. Rg1 {[%emt 0:11:43]} Nc3+ {[%emt 0:
02:49]} 25. Bxc3 {[%emt 0:00:06]} Rxc3 {[%emt 0:00:07]} 26. Rg3 {[%emt 0:03:41]
} Rac8 {[%emt 0:05:13]} 27. Nd4 {[%emt 0:02:16]} Bg5 {[%emt 0:00:35]} 28. Rxc3
{[%emt 0:03:13]} Rxc3 {[%emt 0:01:02]} 29. Rd3 {[%emt 0:00:10]} Bf4 {[%emt 0:
04:23]} 30. Nf3 {[%emt 0:04:49]} Kf8 {[%emt 0:06:42]} 31. fxe6 {[%emt 0:05:49]}
Bxe6 {[%emt 0:01:39]} 32. Rxc3 {[%emt 0:11:20]} bxc3 {[%emt 0:00:12]} 33. Nd4 {
[%emt 0:00:09]} Bxe5 {[%emt 0:03:38]} 34. Nxe6+ {[%emt 0:00:29]} fxe6 {[%emt 0:
00:07]} 35. Kc1 {[%emt 0:00:23]} Bxh2 {[%emt 0:00:07]} 36. Bg2 {[%emt 0:00:28]}
Ke7 {[%emt 0:00:08]} 37. Kd1 {[%emt 0:00:04]} Kd6 {[%emt 0:00:27]} 38. Ke2 {
[%emt 0:00:16]} Ke5 {[%emt 0:03:17]} 39. Ke3 {[%emt 0:00:38]} Bg1+ {[%emt 0:00:
59]} 40. Kf3 {[%emt 0:00:30]} Kd4 {[%emt 0:00:15]} 41. Bf1 {[%emt 0:00:22]} e5
{[%emt 0:00:17]} 42. Ba6 {[%emt 0:01:37]} e4+ {[%emt 0:00:25]} 43. Ke2 {
[%emt 0:00:05]} Ke5 {[%emt 0:01:18]} 44. Bc8 {[%emt 0:00:12]} Bc5 {[%emt 0:00:
12]} 45. Bd7 {[%emt 0:00:21]} d4 {[%emt 0:00:35]} 46. Bb5 {[%emt 0:03:05]} Bb4
{[%emt 0:00:07]} 47. Kd1 {[%emt 0:00:03]} Kf4 {[%emt 0:00:05]} 48. Bd7 {
[%emt 0:01:27]} g6 {[%emt 0:00:16]} 0-1

[Event "Limburg Open 2022"]
[Site "Maastricht"]
[Date "2022.06.04"]
[Round "3.1"]
[White "Warmerdam, Max"]
[Black "Ernst, Sipke"]
[Result "1/2-1/2"]
[ECO "A40"]
[WhiteElo "2613"]
[BlackElo "2538"]
[PlyCount "65"]
[EventDate "2022.06.03"]
[EventType "swiss"]
[EventRounds "7"]
[EventCountry "NED"]
[SourceTitle "Limburg Open"]
[Source "Limburg Open"]
[SourceDate "2022.06.06"]
[SourceVersion "7"]
[SourceVersionDate "2022.06.06"]
[SourceQuality "1"]
[TimeControl "7200+15"]

{[%evp 0,15,37,-16,47,32,27,27,101,74,74,46,89,73,50,79,78,51]} 1. c4 {[%emt 0:
01:59]} g6 {[%emt 0:01:59]} 2. e4 {[%emt 0:02:12]} Bg7 {[%emt 0:00:22]} 3. d4 {
[%emt 0:00:41]} e6 {[%emt 0:03:18]} 4. Nc3 {[%emt 0:00:41]} Ne7 {[%emt 0:00:05]
} 5. h4 {[%emt 0:02:52]} h5 {[%emt 0:05:07]} 6. Bg5 {[%emt 0:02:16]} d6 {
[%emt 0:02:51]} 7. Nf3 {[%emt 0:13:50]} Nd7 {[%emt 0:02:32]} 8. Be2 {[%emt 0:
00:53]} a6 9. Qc2 b6 10. Rd1 Bb7 11. O-O O-O 12. Rfe1 Qe8 13. b4 Nf6 14. Bf1
Ng4 15. a3 Qd7 16. g3 Rae8 17. Bg2 Qc8 18. Re2 f5 19. Qd3 fxe4 20. Nxe4 Nf5 21.
Bc1 b5 22. cxb5 axb5 23. Bb2 Bd5 24. Nfd2 Bh6 25. Rde1 Qb7 26. f3 Nf6 27. Kf2
Bxd2 28. Nxd2 Kh7 29. Bh3 Qc6 30. Rc1 Qb7 31. Qc3 Rf7 32. Rce1 c6 33. Rc1
1/2-1/2

[Event "Limburg Open 2022"]
[Site "Maastricht"]
[Date "2022.06.04"]
[Round "3.2"]
[White "Gurevich, Mikhail"]
[Black "Zwirs, Nico"]
[Result "1-0"]
[ECO "D45"]
[WhiteElo "2576"]
[BlackElo "2475"]
[PlyCount "74"]
[EventDate "2022.06.03"]
[EventType "swiss"]
[EventRounds "7"]
[EventCountry "NED"]
[SourceTitle "Limburg Open"]
[Source "Limburg Open"]
[SourceDate "2022.06.06"]
[SourceVersion "7"]
[SourceVersionDate "2022.06.06"]
[SourceQuality "1"]
[TimeControl "7200+15"]

{[%evp 0,27,37,-6,6,0,-10,-16,-10,-16,20,35,43,19,22,-7,16,3,12,-17,10,10,71,1,
-3,-4,2,-8,-1,-18]} 1. c4 {[%emt 0:00:11]} e6 {[%emt 0:00:05]} 2. Nf3 {[%emt 0:
03:19]} d5 {[%emt 0:00:05]} 3. d4 {[%emt 0:00:02]} Nf6 {[%emt 0:00:08]} 4. Nc3
{[%emt 0:00:05]} c6 {[%emt 0:00:04]} 5. e3 {[%emt 0:00:04]} Nbd7 {[%emt 0:00:
05]} 6. Qc2 {[%emt 0:00:11]} Bd6 {[%emt 0:00:11]} 7. b3 {[%emt 0:00:14]} O-O {
[%emt 0:00:16]} 8. Be2 {[%emt 0:00:03]} b6 {[%emt 0:00:31]} 9. cxd5 {[%emt 0:
02:13]} exd5 {[%emt 0:00:42]} 10. O-O {[%emt 0:00:08]} Re8 {[%emt 0:02:06]} 11.
Bb2 {[%emt 0:00:10]} Bb7 {[%emt 0:00:19]} 12. Rac1 {[%emt 0:00:28]} Qe7 {
[%emt 0:00:53]} 13. Rfd1 {[%emt 0:01:47]} Rad8 {[%emt 0:03:53]} 14. Bf1 {
[%emt 0:06:35]} Nf8 15. g3 Ng6 16. Bg2 h5 17. Ne2 h4 18. Nf4 hxg3 19. hxg3 Ne4
20. Nxg6 fxg6 21. Ne5 Bxe5 22. dxe5 c5 23. b4 cxb4 24. Qb3 Kh7 25. Rd4 Rc8 26.
Rcd1 Nc3 27. R1d2 a5 28. a3 Rc4 29. Rxc4 dxc4 30. Qxc4 Bxg2 31. Kxg2 Qxe5 32.
axb4 Qe4+ 33. Qxe4 Nxe4 34. Rd7 axb4 35. Rxg7+ Kh6 36. Rb7 Re6 37. Bg7+ Kh5 1-0

[Event "Limburg Open 2022"]
[Site "Maastricht"]
[Date "2022.06.04"]
[Round "3.3"]
[White "Van Foreest, Lucas"]
[Black "Fischer, Daniel"]
[Result "1-0"]
[ECO "E08"]
[WhiteElo "2553"]
[BlackElo "2324"]
[PlyCount "113"]
[EventDate "2022.06.03"]
[EventType "swiss"]
[EventRounds "7"]
[EventCountry "NED"]
[SourceTitle "Limburg Open"]
[Source "Limburg Open"]
[SourceDate "2022.06.06"]
[SourceVersion "7"]
[SourceVersionDate "2022.06.06"]
[SourceQuality "1"]
[TimeControl "7200+15"]

{[%evp 0,33,38,19,18,-16,-25,0,-10,-25,2,0,20,13,-11,-14,53,48,20,-6,27,-4,20,
2,17,-39,-21,-17,14,-5,10,-13,15,-11,-29,-32]} 1. d4 {[%emt 0:03:20]} Nf6 {
[%emt 0:00:08]} 2. c4 {[%emt 0:00:58]} e6 {[%emt 0:00:05]} 3. Nf3 {[%emt 0:00:
05]} d5 {[%emt 0:00:19]} 4. g3 {[%emt 0:00:07]} Bb4+ {[%emt 0:00:17]} 5. Bd2 {
[%emt 0:00:05]} Be7 {[%emt 0:00:05]} 6. Bg2 {[%emt 0:00:05]} O-O {[%emt 0:00:
07]} 7. O-O {[%emt 0:00:05]} c6 {[%emt 0:00:17]} 8. Qc2 {[%emt 0:00:08]} Nbd7 {
[%emt 0:00:05]} 9. Bf4 {[%emt 0:00:04]} b6 {[%emt 0:00:12]} 10. Rd1 {[%emt 0:
00:05]} Ba6 {[%emt 0:00:37]} 11. cxd5 {[%emt 0:02:41]} cxd5 {[%emt 0:02:28]}
12. Ne5 {[%emt 0:00:56]} Nxe5 {[%emt 0:15:34]} 13. dxe5 {[%emt 0:00:11]} Ng4 {
[%emt 0:00:29]} 14. Bf3 {[%emt 0:00:51]} f5 {[%emt 0:01:04]} 15. exf6 {[%emt 0:
00:07]} Nxf6 {[%emt 0:00:09]} 16. Qa4 {[%emt 0:00:17]} Bb7 {[%emt 0:02:26]} 17.
Nd2 {[%emt 0:00:05]} Bd6 18. Bxd6 Qxd6 19. Nc4 Qc7 20. Ne3 Rac8 21. Rac1 Qxc1
22. Rxc1 Rxc1+ 23. Kg2 a5 24. g4 e5 25. g5 e4 26. Bg4 Nxg4 27. Nxg4 Rc6 28. Qd4
Re6 29. Ne3 h6 30. h4 hxg5 31. hxg5 Kh7 32. Kg1 Rf7 33. Ng2 Rf5 34. Qe3 Kg8 35.
Qg3 Bc6 36. Nh4 Rf8 37. Qg4 Rfe8 38. Nf5 Bd7 39. Nd4 Rd6 40. Qf4 Rg6 41. Kf1
Be6 42. Ke1 Bf7 43. Kd2 Rd8 44. Nf5 Re8 45. Qc7 Rge6 46. Ke3 Re5 47. Nd6 R8e7
48. Qb8+ Be8 49. g6 Kf8 50. Nc8 R7e6 51. Nxb6 Ke7 52. Qb7+ Kf6 53. Nxd5+ Kg5
54. Nf4 Re7 55. Qb6 Bd7 56. Qd8 Kf6 57. b3 1-0

[Event "Limburg Open 2022"]
[Site "Maastricht"]
[Date "2022.06.04"]
[Round "3.4"]
[White "Kopylov, Daniel"]
[Black "Donchenko, Alexander"]
[Result "0-1"]
[ECO "B90"]
[WhiteElo "2326"]
[BlackElo "2602"]
[PlyCount "96"]
[EventDate "2022.06.03"]
[EventType "swiss"]
[EventRounds "7"]
[EventCountry "NED"]
[SourceTitle "Limburg Open"]
[Source "Limburg Open"]
[SourceDate "2022.06.06"]
[SourceVersion "7"]
[SourceVersionDate "2022.06.06"]
[SourceQuality "1"]
[TimeControl "7200+15"]

{[%evp 0,28,16,28,86,73,111,93,89,64,55,60,79,41,41,41,40,29,34,11,40,43,35,12,
12,-6,13,7,21,14,8]} 1. e4 {[%emt 0:00:10]} c5 {[%emt 0:00:21]} 2. Nf3 {
[%emt 0:00:17]} d6 {[%emt 0:00:06]} 3. d4 {[%emt 0:00:08]} cxd4 {[%emt 0:00:02]
} 4. Nxd4 {[%emt 0:00:06]} Nf6 {[%emt 0:00:05]} 5. Nc3 {[%emt 0:00:04]} a6 {
[%emt 0:00:04]} 6. Be3 {[%emt 0:00:16]} e5 {[%emt 0:00:17]} 7. Nf3 {[%emt 0:00:
13]} Be7 {[%emt 0:00:05]} 8. Bc4 {[%emt 0:00:09]} Be6 {[%emt 0:00:29]} 9. Bb3 {
[%emt 0:01:10]} Nbd7 {[%emt 0:00:19]} 10. O-O {[%emt 0:04:57]} Rc8 {[%emt 0:00:
20]} 11. Ng5 {[%emt 0:06:00]} Bc4 {[%emt 0:05:27]} 12. Bxc4 {[%emt 0:10:03]}
Rxc4 {[%emt 0:00:03]} 13. Qd3 {[%emt 0:00:26]} Qc7 {[%emt 0:03:25]} 14. Nf3 {
[%emt 0:01:18]} O-O {[%emt 0:02:29]} 15. Nd2 Rc6 16. Rfc1 Rc8 17. Bg5 h6 18.
Bxf6 Nxf6 19. Nf1 b5 20. Ne3 Qb7 21. a4 b4 22. Nb1 Nd7 23. Nd2 Bg5 24. Ndc4
Rxc4 25. Nxc4 Nc5 26. Qh3 Nxe4 27. Ne3 Rc5 28. Re1 d5 29. Qf5 Bxe3 30. Rxe3 Qc7
31. f3 g6 32. Qh3 Nf6 33. Qxh6 Rxc2 34. Rae1 e4 35. R3e2 Qb6+ 36. Kf1 b3 37.
Rc1 Qd4 38. Rce1 Qxb2 39. Qf4 Kg7 40. Rxc2 Qxc2 41. Re2 Qd1+ 42. Re1 Qd3+ 43.
Kg1 b2 44. Qb8 Qd2 45. Kf1 d4 46. Re2 Qd1+ 47. Re1 Qd3+ 48. Kg1 Qd2 0-1

[Event "Limburg Open 2022"]
[Site "Maastricht"]
[Date "2022.06.04"]
[Round "3.5"]
[White "Muetsch, Annmarie"]
[Black "Dardha, Daniel"]
[Result "0-1"]
[ECO "B23"]
[WhiteElo "2272"]
[BlackElo "2555"]
[PlyCount "50"]
[EventDate "2022.06.03"]
[EventType "swiss"]
[EventRounds "7"]
[EventCountry "NED"]
[SourceTitle "Limburg Open"]
[Source "Limburg Open"]
[SourceDate "2022.06.06"]
[SourceVersion "7"]
[SourceVersionDate "2022.06.06"]
[SourceQuality "1"]
[TimeControl "7200+15"]

{[%evp 0,18,28,15,100,64,86,56,54,54,86,8,4,-1,32,-3,42,7,13,16,6]} 1. e4 {
[%emt 0:00:04]} c5 {[%emt 0:03:10]} 2. Nc3 {[%emt 0:00:38]} d6 {[%emt 0:00:56]}
3. d4 {[%emt 0:00:14]} cxd4 {[%emt 0:00:15]} 4. Qxd4 {[%emt 0:00:07]} Nf6 {
[%emt 0:03:21]} 5. b3 {[%emt 0:00:37]} Nc6 {[%emt 0:04:34]} 6. Qd2 {[%emt 0:00:
11]} e6 {[%emt 0:00:35]} 7. Bb2 {[%emt 0:02:00]} Be7 {[%emt 0:01:43]} 8. O-O-O
{[%emt 0:05:00]} O-O {[%emt 0:01:56]} 9. Kb1 {[%emt 0:05:43]} a6 {[%emt 0:02:
58]} 10. a4 Qa5 11. Bd3 b5 12. Nge2 Bd7 13. g4 bxa4 14. Nxa4 Nb4 15. Nec3 Nxd3
16. Qxd3 Rfc8 17. f3 Rab8 18. h4 Rb7 19. Ka2 d5 20. e5 Bxa4 21. Nxa4 Nd7 22.
Kb1 Rcb8 23. Nc3 Nc5 24. Qe2 Nxb3 25. cxb3 Rxb3 0-1

[Event "Limburg Open 2022"]
[Site "Maastricht"]
[Date "2022.06.04"]
[Round "3.6"]
[White "Gupta, Sankalp"]
[Black "Van Roon, Sjoerd"]
[Result "1/2-1/2"]
[ECO "D00"]
[WhiteElo "2505"]
[BlackElo "2280"]
[PlyCount "81"]
[EventDate "2022.06.03"]
[EventType "swiss"]
[EventRounds "7"]
[EventCountry "NED"]
[SourceTitle "Limburg Open"]
[Source "Limburg Open"]
[SourceDate "2022.06.06"]
[SourceVersion "7"]
[SourceVersionDate "2022.06.06"]
[SourceQuality "1"]
[TimeControl "7200+15"]

{[%evp 0,25,20,25,31,30,25,0,35,14,1,11,33,32,42,37,43,42,42,4,68,14,26,51,88,
18,18,-4]} 1. d4 {[%emt 0:02:16]} d5 {[%emt 0:01:53]} 2. Nc3 {[%emt 0:00:24]}
Nf6 {[%emt 0:00:32]} 3. Bf4 {[%emt 0:00:11]} e6 {[%emt 0:00:34]} 4. Nb5 {
[%emt 0:01:06]} Na6 {[%emt 0:01:29]} 5. e3 {[%emt 0:00:02]} c6 {[%emt 0:03:09]}
6. Nc3 {[%emt 0:00:03]} Nc7 {[%emt 0:00:25]} 7. Nf3 {[%emt 0:00:37]} b6 {
[%emt 0:01:28]} 8. Ne5 {[%emt 0:05:23]} Bb7 {[%emt 0:00:11]} 9. Qf3 {[%emt 0:
02:18]} Be7 {[%emt 0:00:49]} 10. g4 {[%emt 0:00:52]} O-O {[%emt 0:02:21]} 11.
g5 {[%emt 0:05:20]} Nd7 {[%emt 0:04:19]} 12. Nxd7 {[%emt 0:01:23]} Qxd7 {
[%emt 0:00:05]} 13. h4 {[%emt 0:00:06]} Ba6 14. Bh3 Bb4 15. h5 Nb5 16. h6 g6
17. a3 Bxc3+ 18. bxc3 f5 19. Qe2 Qe7 20. Qd2 Nd6 21. f3 Nf7 22. Rg1 e5 23. dxe5
Nxe5 24. Kf2 Rfe8 25. Qd4 Bc4 26. Rge1 Rad8 27. a4 c5 28. Qxe5 Qxe5 29. Bxe5
Rxe5 30. a5 b5 31. a6 Rde8 32. Rab1 Kf7 33. Bf1 Bxf1 34. Kxf1 Rb8 35. Kf2 Ke6
36. Red1 c4 37. Rd2 Rb6 38. Rbd1 Rd6 39. Rd4 Rd8 40. Ra1 Kd6 41. Rdd1 1/2-1/2